Cogmind - Beta 13 @@@ ROGUE MODE // 2024.05.08 @ 15:57:09 Player: Barbarossa Result: Destroyed by X-67 Chaingunner with Heavy Machine Gun Performance ------------- Evolutions (4) 2000 Regions Visited (5) 1000 Robots Destroyed (143) 715 Value Destroyed (4684) 4684 Prototype IDs (6) 120 Alien Tech Used (0) 0 Bonus (284) 284 TOTAL SCORE: 8803 Bonus ------- High Alert Combat Kills 284 Cogmind --------- Core Integrity 0/850 Matter 294/300 Energy 100/100 System Corruption 3% Temperature Cool (0) Movement Core (2850) Ox56 Location -6/Factory Parts ------- > --- POWER (1) -------- (None) > --- PROPULSION (4) --- (None) > --- UTILITY (6) ------ Improved Heat Sink Improved Heat Sink Cargo Storage Unit Improved Signal Interpreter > --- WEAPON (4) ------- Heavy Plasma Cannon Heavy Plasma Cannon Mini Assault Cannon Mini Assault Cannon > --- INVENTORY (30) --- Cargo Storage Unit High-capacity Battery (250) High-capacity Battery (250) High-capacity Battery (250) High-capacity Matter Pod (200) High-capacity Matter Pod (200) High-capacity Matter Pod (200) High-capacity Matter Pod (200) Advanced Visual Processing Unit Transmission Jammer Corruption Screen High-powered Tractor Beam Improved Field Recycling Unit (0) Heavy Laser Heavy Laser Heavy Plasma Cannon Datajack Peak State ------------ > --- POWER ------------ Angular Momentum Engine > --- PROPULSION ------- Armored Huge Wheel Armored Huge Wheel > --- UTILITY ---------- Improved Cooling System Cargo Storage Unit Signal Interpreter Layered Light Armor Plating Improved Field Recycling Unit > --- WEAPON ----------- Heavy Laser Flak Gun Flak Gun Advanced Assault Cannon > --- INVENTORY -------- Angular Momentum Engine Light Treads Light Treads Improved Treads Medium Treads Wheel Wheel Improved Heat Sink Improved Heat Sink Improved Heat Sink Improved Cooling System Cargo Storage Unit High-capacity Battery High-capacity Battery High-capacity Battery High-capacity Matter Pod High-capacity Matter Pod High-capacity Matter Pod High-capacity Matter Pod Advanced Visual Processing Unit Recoil Stabilizer Corruption Screen Heavy Particle Gun Flak Gun Flak Gun Flak Gun Datajack [Rating: 58] Favorites ----------- Power Ion Engine Engine Ion Engine Power Core Fission Core Propulsion Wheel Treads Light Treads Leg Aluminum Leg Wheel Wheel Utility Signal Interpreter Device Improved Cooling System Storage Cargo Storage Unit Processor Signal Interpreter Protection Layered Light Armor Plating Weapon Flak Gun Energy Gun Heavy Particle Gun Energy Cannon Heavy Plasma Cannon Ballistic Gun Flak Gun Ballistic Cannon Advanced Assault Cannon Launcher Advanced EMP Blaster Build | -11 -10 -9 -8 -7 -6 ------- Run | Yrd Mat Mat Mat Fac Fac Slots Evolved 8 | . . 2 2 2 2 Power . | . . . . . . Propulsion 2 | . . 2 . . . Utility 4 | . . . 2 . 2 Weapon 2 | . . . . 2 . Parts Attached 120 | . 8 11 31 25 45 Power 10 | . 1 . 3 2 4 Engine 8 | . 1 . 2 2 3 Core 2 | . . . 1 . 1 Reactor . | . . . . . . Propulsion 39 | . 2 5 10 7 15 Treads 12 | . . 3 5 . 4 Leg . | . . . . . . Wheel 27 | . 2 2 5 7 11 Hover . | . . . . . . Flight . | . . . . . . Utility 26 | . 3 2 6 4 11 Device 15 | . 1 1 3 2 8 Storage 4 | . 2 1 . 1 . Processor 5 | . . . 2 1 2 Hackware . | . . . . . . Protection 2 | . . . 1 . 1 Artifact . | . . . . . . Weapon 45 | . 2 4 12 12 15 Energy Gun 14 | . 1 3 4 4 2 Energy Cannon 3 | . . . . . 3 Ballistic Gun 18 | . . . 7 6 5 Ballistic Cannon 9 | . 1 1 . 2 5 Launcher 1 | . . . 1 . . Special Weapon . | . . . . . . Impact Weapon . | . . . . . . Slashing Weapon . | . . . . . . Piercing Weapon . | . . . . . . Special Melee Weapon . | . . . . . . Unidentified Prototypes 6 | . . . 4 1 1 Parts Lost 62 | . 2 5 19 5 31 Power 8 | . 1 . 3 1 3 Propulsion 29 | . 1 3 8 2 15 Utility 10 | . . 1 3 . 6 Weapon 15 | . . 1 5 2 7 Highest Loss Streak 12 | . 1 2 11 3 12 To Critical Strikes . | . . . . . . Average Slot Usage (%) 84 | . 86 89 79 87 78 Engine 6 | . 12 11 3 7 3 Core 1 | . . . 4 . 2 Treads 6 | . . 19 11 5 3 Wheel 17 | . 18 18 16 20 12 Device 8 | . 4 7 6 6 13 Storage 8 | . 14 11 9 7 6 Processor 6 | . . . 11 8 6 Protection 1 | . . . . . 3 Energy Gun 6 | . 8 11 4 7 5 Ballistic Gun 12 | . 8 . 11 18 11 Ballistic Cannon 5 | . 10 11 1 3 5 Naked Turns . | . . . . . . Heaviest Build 189 | 11 50 93 93 170 189 Greatest Support 91 | 20 20 32 32 50 91 Greatest Overweight (x) 59 | . 4 5 7 7 59 Average Overweight (x) 3 | . 1 2 3 3 3 Largest Inventory Capacity 30 | . 20 25 25 30 30 Average Capacity 26 | . 16 23 25 28 30 Most Carried 30 | . 20 25 25 30 30 Average Carried 24 | . 13 21 20 28 25 Final Capacity 30 | 8 20 25 25 30 30 Final Carried 30 | 6 20 24 25 30 18 Class Distribution -------------------- 37% | Hauler-Gunner 29% | Mutant 18% | Hauler-Tank 10% | Scavenger-Gunner 3% | Scavenger-Mutant Dominant Class ---------------- Mutant | -10/Materials Mutant | -9/Materials Mutant | -8/Materials Hauler-Gunner | -7/Factory Hauler-Tank | -6/Factory Resources | -11 -10 -9 -8 -7 -6 ----------- Run | Yrd Mat Mat Mat Fac Fac Matter Collected 5382 | 200 826 268 1148 663 2277 Remotely 336 | . 188 148 . . . Salvage Created 5277 | . 732 595 1205 670 2075 Parts 262 | . 42 40 62 38 80 Haulers Intercepted 8 | . 2 1 4 . 1 Recyclers Shooed 14 | . 4 1 . 1 8 Parts Field Recycled . | . . . . . . Retrieved Matter . | . . . . . . Parts Self-Destructed . | . . . . . . Prevented . | . . . . . . Kills | -11 -10 -9 -8 -7 -6 ------- Run | Yrd Mat Mat Mat Fac Fac Combat Hostiles Destroyed 92 | . 12 14 15 17 34 Guns 54 | . 3 7 13 16 15 Cannons 37 | . 9 7 2 1 18 Classes Destroyed 15 | . 4 2 4 2 3 Worker 15 | . . . 4 1 10 Builder 6 | . . . 3 2 1 Tunneler 2 | . . 1 . . 1 Hauler 8 | . 2 1 4 . 1 Recycler 9 | . 3 . 1 . 5 Mechanic 1 | . . . . . 1 Operator 4 | . . . 1 2 1 Watcher 6 | . 1 2 1 1 1 Swarmer 10 | . . . . 3 7 Grunt 60 | . 12 11 11 8 18 Brawler 1 | . . . . . 1 Sentry 10 | . . 3 3 2 2 Hunter 3 | . . . 1 1 1 Programmer 7 | . . . . 3 4 Behemoth 1 | . . . . . 1 Best Kill Streak 10 | . 10 4 7 5 10 Combat Bots Only 9 | . 4 4 5 5 9 Max Kills in Single Turn 2 | . 1 1 2 2 2 Gunslinging . | . . . . . . Exploded . | . . . . . . Melee . | . . . . . . Uniques/NPCs Destroyed . | . . . . . . Combat | -11 -10 -9 -8 -7 -6 -------- Run | Yrd Mat Mat Mat Fac Fac Hostile Shots Fired 899 | . 56 80 165 174 424 Missed 276 | . 19 21 38 57 141 Damage Taken 9759 | . 424 707 2114 1611 4903 Core 1542 | . 104 64 269 244 861 Absorbed by Shields . | . . . . . . Core Remaining (%) 71 | 100 58 84 51 65 . Volleys Fired 429 | . 74 58 97 49 151 Largest 4 | . 2 2 2 4 4 Hottest 221 | . 75 100 95 179 221 Shots Fired 956 | . 126 101 187 178 364 Gun 699 | . 82 57 174 151 235 Cannon 257 | . 44 44 13 27 129 Launcher . | . . . . . . Special . | . . . . . . Kinetic 612 | . 75 44 133 137 223 Thermal 344 | . 51 57 54 41 141 Explosive . | . . . . . . Electromagnetic . | . . . . . . Robot Hit Streak 19 | . 12 8 19 13 15 Robot Miss Streak 14 | . 5 3 4 10 14 Penetration Max . | . . . . . . Secondary Targets 5 | . . . 3 1 1 Max Gunslinging Chain 1 | . . . 1 1 1 Shots Hit Robots 652 | . 75 64 138 118 257 Core Hits 375 | . 31 27 50 105 162 Critical Kills 1 | . . . 1 . . Critical Parts Destroyed 1 | . . . . . 1 Critical Strikes 18 | . 1 3 4 1 9 Burn 6 | . . 1 2 1 2 Destroy 2 | . . . 1 . 1 Blast 10 | . 1 2 1 . 6 Melee Attacks . | . . . . . . Impact . | . . . . . . Slashing . | . . . . . . Piercing . | . . . . . . Sneak Attacks . | . . . . . . Combat Hostiles . | . . . . . . Follow-up Attacks . | . . . . . . Damage Inflicted 13089 | . 1063 1062 2413 2072 6479 Guns 8168 | . 577 530 2045 1811 3205 Cannons 4178 | . 486 532 211 244 2705 Explosions 726 | . . . 157 . 569 Melee . | . . . . . . Ramming 17 | . . . . 17 . Kinetic 8193 | . 673 532 1509 1465 4014 Thermal 4266 | . 390 530 860 590 1896 Explosive 613 | . . . 44 . 569 Electromagnetic . | . . . . . . Impact . | . . . . . . Slashing . | . . . . . . Piercing . | . . . . . . Highest Corruption 7 | . . . 7 2 3 Average Corruption 2 | . . . 4 1 1 Corruption Purged . | . . . . . . Corruption Blocked . | . . . . . . Effects 44 | . . . 14 20 10 Message Errors 10 | . . . 4 4 2 Matter Fused 11 | . . . 3 4 4 Heat Flow Errors 7 | . . . 1 5 1 Energy Discharges 2 | . . . . 1 1 Parts Rejected 2 | . . . . 2 . Data Loss (minor) 1 | . . . 1 . . Data Loss (major) 1 | . . . . . 1 Misfires 3 | . . . 2 1 . Alerts 2 | . . . . 2 . Weapon Failures 5 | . . . 3 1 1 Overload Shots . | . . . . . . Overflow Damage 218 | . . 9 52 56 101 Projectiles 22 | . . 9 . . 13 Explosions 196 | . . . 52 56 88 Melee . | . . . . . . Knockbacks 35 | . 7 3 2 1 22 Impact . | . . . . . . Kinetic 34 | . 7 3 2 1 21 Secondary 1 | . . . . . 1 Self-Inflicted Damage 322 | . . . 133 189 . Shots 4 | . . . 2 2 . Rammed 1 | . . . . 1 . Targets Rammed 1 | . . . . 1 . Kicked . | . . . . . . Crushed . | . . . . . . Highest Temperature 503 | . 218 432 259 369 503 Average Temperature 109 | . 85 119 100 85 126 Received Heat Transfer 3430 | . 240 369 927 246 1648 Effects 11 | . . 2 . . 9 Shutdowns 3 | . . . . . 3 Energy Bleed 1 | . . . . . 1 Interference 5 | . . 2 . . 3 Matter Decay 1 | . . . . . 1 Damage (minor) 1 | . . . . . 1 Siege Activations . | . . . . . . Robots Corrupted . | . . . . . . Combat Hostiles . | . . . . . . Parts Fried . | . . . . . . Impact Corruptions . | . . . . . . Robots Melted 1 | . . . . . 1 Combat Hostiles 1 | . . . . . 1 Parts Melted 8 | . . . 6 . 2 Heat Transferred 8484 | . 875 1348 1913 681 3667 Parts Sabotaged . | . . . . . . Parts Stolen . | . . . . . . Parts Stripped . | . . . . . . Power Chain Reactions . | . . . . . . Alert | -11 -10 -9 -8 -7 -6 ------- Run | Yrd Mat Mat Mat Fac Fac Peak Influence 717 | . 200 283 274 505 717 Initial 247 | . . 84 55 56 247 Average 202 | . 77 138 93 150 388 Maximum Alert Level 3 | . 1 1 1 2 3 Low Security (%) 58 | . 93 76 92 75 . Level 1 27 | . 6 23 7 14 63 Level 2 13 | . . . . 9 35 Level 3 . | . . . . . 1 Level 4 . | . . . . . . Level 5 . | . . . . . . High Security . | . . . . . . Max Security . | . . . . . . Squads Dispatched 27 | . 4 3 4 5 11 Investigation 7 | . 3 2 . 1 1 Extermination 4 | . . . . 2 2 Reinforcement 9 | . 1 1 2 2 3 Assault 1 | . . . . . 1 Garrison 6 | . . . 2 . 4 Intercept . | . . . . . . Searches Triggered . | . . . . . . Construction Impeded . | . . . . . . Haulers Reinforced 1 | . . . . . 1 Active Scanning Responses . | . . . . . . Cargo Convoy Interrupts . | . . . . . . Stealth | -11 -10 -9 -8 -7 -6 --------- Run | Yrd Mat Mat Mat Fac Fac Distress Signals 4 | . . 2 . 2 . Communications Jammed . | . . . . . . Distress Signals . | . . . . . . Times Spotted 141 | . 19 18 19 30 55 Peak Tracking Total 6 | . 5 5 5 5 6 Tactical Retreats 9 | . . . 2 2 5 Traps | -11 -10 -9 -8 -7 -6 ------- Run | Yrd Mat Mat Mat Fac Fac Traps Triggered 5 | . . 2 . 2 1 Indirectly . | . . . . . . Trap Hack Attempts . | . . . . . . Triggered . | . . . . . . Disarmed . | . . . . . . Reprogrammed . | . . . . . . Reused . | . . . . . . Traps Extracted . | . . . . . . Installed . | . . . . . . Triggered . | . . . . . . Machines | -11 -10 -9 -8 -7 -6 ---------- Run | Yrd Mat Mat Mat Fac Fac Machines Disabled 20 | . 1 1 6 7 5 Max in Single Turn 3 | . 1 1 2 3 2 Garrison Access 2 | . . . 1 1 . Machines Repaired . | . . . . . . Machines Dismantled . | . . . . . . Machines Sabotaged . | . . . . . . Overloaded Fab Kills . | . . . . . . Hacking | -11 -10 -9 -8 -7 -6 --------- Run | Yrd Mat Mat Mat Fac Fac Machines Accessed 29 | . 5 6 4 10 4 Terminals 17 | . 4 4 3 4 2 Fabricators 2 | . . . . 2 . Repair Stations 2 | . . . . 1 1 Recycling Units 3 | . 1 1 . 1 . Scanalyzers 2 | . . 1 . 1 . Garrison Access 3 | . . . 1 1 1 Total Hacks 73 | . 14 25 10 19 5 Successful 25 | . 4 8 5 8 . Failed 48 | . 10 17 5 11 5 Catastrophic 9 | . 2 1 1 1 4 Database Lockouts . | . . . . . . Manual 45 | . 6 20 9 8 2 Terminals 48 | . 9 20 9 8 2 Fabricators 4 | . . . . 4 . Repair Stations 4 | . . . . 3 1 Recycling Units 8 | . 5 2 . 1 . Scanalyzers 5 | . . 3 . 2 . Garrison Access 4 | . . . 1 1 2 Terminal Hacks 3 | . . 2 1 . . Unreport Threat 3 | . . 2 1 . . Fabricator Hacks 2 | . . . . 2 . Network Status 1 | . . . . 1 . Build 1 | . . . . 1 . Repair Station Hacks 1 | . . . . 1 . Scan Component 1 | . . . . 1 . Recycling Unit Hacks 4 | . 2 1 . 1 . Process 1 | . 1 . . . . Report Inventory 3 | . 1 1 . 1 . Scanalyzer 3 | . . 1 . 2 . Insert Component 2 | . . 1 . 1 . Analyze 1 | . . . . 1 . Garrison Access Hacks 2 | . . . 1 1 . Seal Access 2 | . . . 1 1 . Unauthorized Hacks 10 | . 2 4 3 1 . Terminals 10 | . 2 4 3 1 . Botnet 10 | . 2 4 3 1 . Fabricators . | . . . . . . Repair Stations . | . . . . . . Recycling Units . | . . . . . . Scanalyzers . | . . . . . . Garrison Access . | . . . . . . Data Cores Recovered 2 | . . . 1 1 . Used . | . . . . . . Hacking Detections 24 | . 4 6 3 7 4 Full Trace Events 4 | . 3 . . . 1 Feedback Events . | . . . . . . Feedback Blocked . | . . . . . . Robot Schematics Acquired . | . . . . . . Robots Built . | . . . . . . Authchips . | . . . . . . Time . | . . . . . . Total Robot Build Rating . | . . . . . . Part Schematics Acquired 1 | . . . . 1 . Parts Built 2 | . . . . 2 . Authchips . | . . . . . . Time 84 | . . . . 84 . Total Part Build Rating 8 | . . . . 8 . Parts Repaired . | . . . . . . Time . | . . . . . . Parts Recycled . | . . . . . . Recycled Matter 348 | . 348 . . . . Retrieved Matter . | . . . . . . Retrieved Components . | . . . . . . Parts Scanalyzed 2 | . . 1 . 1 . Part Schematics Acquired 1 | . . . . 1 . Parts Damaged . | . . . . . . Bothacking | -11 -10 -9 -8 -7 -6 ------------ Run | Yrd Mat Mat Mat Fac Fac Used RIF Installer . | . . . . . . Robots Hacked . | . . . . . . Non-combat . | . . . . . . Combat . | . . . . . . Robot Hacks Applied . | . . . . . . Relay Couplers Released . | . . . . . . Fabnet Peak Effective % . | . . . . . . Robots Rewired . | . . . . . . Allies Hacked . | . . . . . . Hacks Repelled . | . . . . . . Allies | -11 -10 -9 -8 -7 -6 -------- Run | Yrd Mat Mat Mat Fac Fac Total Allies . | . . . . . . Largest Group . | . . . . . . Highest-Rated Group . | . . . . . . Highest-Rated Ally . | . . . . . . Total Orders . | . . . . . . Ally Attacks . | . . . . . . Total Damage . | . . . . . . Kills . | . . . . . . Allies Corrupted . | . . . . . . Allies Melted . | . . . . . . Intel | -11 -10 -9 -8 -7 -6 ------- Run | Yrd Mat Mat Mat Fac Fac Robot Analysis Total . | . . . . . . Derelict Logs Recovered . | . . . . . . Drone Launches . | . . . . . . Drone Recoveries . | . . . . . . Exploration | -11 -10 -9 -8 -7 -6 ------------- Run | Yrd Mat Mat Mat Fac Fac Turns Passed 6208 | . 630 624 818 2364 1772 Spaces Moved 3113 | 1 325 326 300 1376 785 Core 1 | . . . . . 1 Treads 68 | . . . 12 . 56 Legs 113 | 1 112 . . . . Wheels 2931 | . 213 326 288 1376 728 Hover . | . . . . . . Flight . | . . . . . . Fastest Speed 105 | 120 110 105 130 131 131 Average Speed 142 | 120 117 132 153 137 160 Slowest Speed 3000 | 120 140 175 480 190 3000 Overloaded Moves . | . . . . . . Propulsion Burnouts . | . . . . . . Robots Hopped . | . . . . . . Cave-ins Triggered . | . . . . . . Exploration Rate (%) 25 | 2 41 34 25 30 20 Regions Visited 5 Branch Regions . Pre-discovered Areas . | . . . . . . Known Exits Taken 2 | . . . 1 1 . Unknown Exits Taken 3 | 1 1 1 . . . Scrap Searched . | . . . . . . Spaces Dug . | . . . . . . Terrain Destroyed 117 | . . . 25 71 21 Melee . | . . . . . . Projectile 11 | . . . . 6 5 AOE 106 | . . . 25 65 16 Terrain Rammed . | . . . . . . Walls Destroyed . | . . . . . . Machines Disabled . | . . . . . . Actions | -11 -10 -9 -8 -7 -6 --------- Run | Yrd Mat Mat Mat Fac Fac Total 4110 | . 449 419 469 1739 1034 Wait 281 | . 22 . 6 236 17 Move 3108 | . 324 325 299 1375 785 Hop . | . . . . . . Pick Up 105 | . 17 16 24 26 22 Fast Attach 28 | . 3 1 10 6 8 Attach 62 | . 2 6 19 8 27 Detach . | . . . . . . Swap 30 | . 3 4 2 11 10 Drop 66 | . 4 9 12 27 14 Fire 429 | . 74 58 97 49 151 Melee . | . . . . . . Ram 1 | . . . . 1 . Kick . | . . . . . . Crush . | . . . . . . Escape Stasis . | . . . . . . Rewire . | . . . . . . Trap . | . . . . . . Miscellaneous . | . . . . . . Route ------- -11/Scrapyard -10/Materials (discovered 2 exits: *Mat / [*Min]) -9/Materials (discovered 2 exits: *Mat / [*Min]) -8/Materials -7/Factory (discovered 3 exits: *Fac / *Sto / *Low) -6/Factory History --------- Turn | Location | Event 1 | -11/Scrapyard | Discovered new exit (range 0) 1 | -11/Scrapyard | Entered Materials 159 | -10/Materials | Discovered new exit (range 11) 315 | -10/Materials | Build established: Mutant 577 | -10/Materials | Discovered new exit (range 15) 631 | -10/Materials | Entered another Materials area 631 | -9/Materials | Evolved 2 slots: Propulsion x2 826 | -9/Materials | Discovered new exit (range 8) 1088 | -9/Materials | Discovered new exit (range 15) 1255 | -9/Materials | Entered another Materials area 1255 | -8/Materials | Evolved 2 slots: Utility x2 1416 | -8/Materials | Lost 4 parts (1p2n1w) 1640 | -8/Materials | Garrison activated, responded to threat 1774 | -8/Materials | Garrison activated, responded to threat 1867 | -8/Materials | Lost 11 parts (2p4n3u2w) 2002 | -8/Materials | Discovered new exit (range 14) 2070 | -8/Materials | Identified exit to Factory 2073 | -8/Materials | Entered Factory 2073 | -7/Factory | Evolved 2 slots: Weapon x2 2233 | -7/Factory | Discovered new exit (range 12) 2249 | -7/Factory | Identified exit to Storage 2342 | -7/Factory | Build established: Scavenger-Gunner 2934 | -7/Factory | Fabricated Imp. Deuterium Engine (x2) 3018 | -7/Factory | Build established: Hauler-Gunner 3273 | -7/Factory | Lost 3 parts (1p1n1w) 4153 | -7/Factory | Discovered new exit (range 9) 4164 | -7/Factory | Identified exit to Lower Caves 4394 | -7/Factory | Discovered new exit (range 6) 4434 | -7/Factory | Identified exit to Factory 4437 | -7/Factory | Entered another Factory area 4437 | -6/Factory | Evolved 2 slots: Utility x2 4643 | -6/Factory | Garrison activated, responded to threat 4744 | -6/Factory | Garrison activated, responded to threat 4756 | -6/Factory | Lost 3 parts (3w) 4845 | -6/Factory | Build established: Hauler-Tank 5694 | -6/Factory | Spotted B-75 Beast 5757 | -6/Factory | Destroyed B-75 Beast 5788 | -6/Factory | Lost 12 parts (1p7n2u2w) 5798 | -6/Factory | Core integrity fell below 50% 5837 | -6/Factory | First assault squad dispatched 5998 | -6/Factory | Core integrity fell below 20% 6011 | -6/Factory | Lost 7 parts (1p3n2u1w) 6014 | -6/Factory | Build established: Hauler-Gunner 6025 | -6/Factory | Destroyed 9 combat bots 6209 | -6/Factory | Destroyed by X-67 Chaingunner with Heavy Machine Gun Last Messages --------------- (Blast). 06131_ Destroyed Lgt. Deuterium Engine. 06131_ W-25 Informer knocked back. 06147_ Acquired 3 matter. 06173_ ALERT: Suspicious intruders detected, dispatching Specialist reinforcements to area. 06181_ Dropped Hvy. Plasma Cannon. 06183_ Penetrated by Slug. 06183_ Knocked back. 06187_ Imp. Heat Sink destroyed. 06187_ Critical hit (Blast). 06187_ Knocked back. 06189_ Com. Wheel destroyed. 06190_ Med. Treads destroyed. 06191_ Knocked back. 06192_ Acquired 11 matter. 06193_ Com. Wheel destroyed. 06193_ Critical hit (Blast). 06204_ System corrupted: Matter fused (-8). 06207_ Lgt. Angular Momentum Engine destroyed. Map ----- +----------------------------------------------------+ | ?????????????????????????????????????????????????? | | ?????????????????????????????????????????????????? | | ?????????????????????????????????????????????????? | | ???????????????????????????????????????????? ??? | | ??????????????????????????????????????????# ??" | | ??????????????????????????????????????????# """ | | ??????????????????????????????????????????# """ | | ??????????????????????????????????????????# | | ??????????????????????????????????????????# | | ??????????????????????????????????????????# | | ??????????????????????????????????????????# | | ??????????????????????????????????????????# | | ??????????????????????????????????????????## | | ???????????????????????????????############# | | ??????????????????????????????# # | | ??????????????????????????????# " # | | ??????????????????????????????# T """ # | | ??????????????????????????????# " """ # | | ??????????????????????????????# """ # % | | ??????????????????????????????# # % | | ???????????????????????######## """ """ + ! | | ???????????????????????# ## """ """ # !% % | | ???????????????????????# T ## """ """ + !%| % | | ???????????????????????# "" /k ! ####+## | | ???????????????????????# % ## ## = = | | ???????????????????????# @=] ## ##%"% % | | ???????????????????????###x##################""" | | ?????????????????????????# #????????????????#"F% | | ?????????????????????????# #????????????????#""" % | | ???????????????????????? #????????????????# "" | | ?????????????????????? #????????????????# | | ?????????????????????# #????????????????# | | ?????????????????????+ H "????????????????# """ | | ?????????????????????# #????????????????# """ | | ?????????????????????# #????????????????# """ | | ?????????????????????# #????????????????# | | ????????????????????? ????????????????#??### | | ???????????????????? ??????????????????#""# | | ???????????????????? ??????????????????## | | ??????????????????? ???????????????????# | | ?????????????????? ???????????????????# | | ??????????????????? ???????????????????# | | ?????????????????????? ???????????????????# | | ???????????????????????? ???????????????????# | | ???????????????????????????????????????????????# | | ???????????????????????????????????????????????#! | | ???????????????????????????????????????????????# | | ???????????????????????????????????????????????? | | ?????????????????????????????????????????????????? | | ?????????????????????????????????????????????????? | +----------------------------------------------------+ Best States ------------- Heat Dissipation 79 Energy Generation 18 Energy Capacity 310 Matter Stores 300 Matter Capacity 300 Sight Range 16 Terrain Scan Density 10 Armor Coverage 225 Evasion (%) 55 Targeting Accuracy 6 Recoil Reduction 8 Salvage Targeting 2 Item Schematics ----------------- Med. Treads | -7/Factory | Scanalyzed Robot Schematics ------------------ None Fabricated ------------ Imp. Deuterium Engine | x2 | -7/Factory | Preloaded Alien Tech Used ----------------- None Achievements -------------- None Challenges ------------ None Game ------ Seed CommMyomerGenerator Manual? 0 Play Time 00:48:42 Cumulative 157.9 hours Start 2024.05.08 @ 15:06:28 End 2024.05.08 @ 15:57:09 Sessions 1 Manual Loads 0 Difficulty Rogue Special Mode None Game No. 304 Rogue 304 Adventurer 0 Explorer 0 Win Type - Total 0 Types 0/0/0/0/0/0/0/0/0 Lore% 41 Gallery% 52 Achievement% 37 Wizard Run 0 Options --------- Layout 1 ASCII 0 Keyboard 0 Movement Mouse Keybinds 0 Fullscreen 1 Font 24/Smallcaps Map View 50x40 Zoom Use 0% Tactical HUD 1 Map Filters NONE Filters NONE Steam 1 RUN: 4e35f438-72de-4b71-9e47-57ba9a0cc9ed